bitfinex/quotes_ETHUSD_20250708
["timestamp","ask_amount","ask_price","bid_price","bid_amount"]
[1751983578331,0.8846,2587.2,2587.1,0.2644428]
[1751983578698,4.74978243,2587.2,2587.1,0.2644428]
[1751983578912,3.86502348,2587.4,2587.1,0.2644428]
[1751983579239,1.66371849,2587.3,2587.1,0.2644428]
[1751983579532,0.27462508,2587.2,2587.1,0.2644428]
[1751983580495,0.27462508,2587.2,2587.1,5.06712794]
[1751983580695,0.27462508,2587.5,2587.2,3.86503426]
[1751983580898,12.9754,2587.6,2587.2,3.86503426]
[1751983580899,0.27478026,2587.4,2587.3,3.90358961]
[1751983581099,0.27478026,2587.4,2587.3,4.09638961]
[1751983581299,0.27478026,2587.4,2587.3,4.95091595]
[1751983581908,0.27478026,2587.4,2587.3,4.95100971]
[1751983582112,0.27478026,2587.4,2587.3,4.05783304]
[1751983582439,0.27478026,2587.4,2587.3,0.1928]
[1751983582934,0.27478026,2587.4,2587.1,0.0716428]
[1751983583118,0.27478026,2587.3,2587.2,0.1928]
[1751983584202,0.27478026,2587.3,2587.2,0.19168861]
[1751983584735,1.19418026,2587.3,2587.2,0.19168861]
[1751983585605,11.8390637,2587.3,2587.2,0.19168861]
[1751983585936,11.8390637,2587.3,2587.1,0.0716428]
[1751983585937,13.22897955,2587.3,2587.1,0.0716428]
[1751983586148,1.66470729,2587.2,2587.1,0.0716428]
[1751983586638,0.27478026,2587.2,2587.1,3.93697463]
[1751983586851,0.27478026,2587.2,2587.1,4.35391757]
[1751983587220,0.27478026,2587.2,2587.1,4.39257088]
[1751983587436,0.27478026,2587.2,2587.1,4.35391757]
[1751983589621,0.27478026,2587.2,2587.1,0.0716428]
[1751983590731,15.07546269,2587.2,2587.1,0.0716428]
[1751983591745,15.41347347,2587.2,2587.1,0.0716428]
[1751983591955,11.54829104,2587.2,2587.1,0.0716428]
[1751983592370,0.27478026,2587.2,2587.1,0.0716428]
[1751983593962,1.6646307,2587.2,2587.1,0.0716428]
[1751983594644,7.1698802,2587.2,2587.1,0.0716428]
[1751983595030,7.17008808,2587.2,2587.1,0.0716428]
[1751983595229,17.17008808,2587.2,2587.1,0.0716428]
[1751983595936,29.22108808,2587.2,2587.1,0.0716428]
[1751983596161,30.35728808,2587.2,2587.1,0.0716428]
[1751983596364,30.69523432,2587.2,2587.1,0.0716428]
[1751983597349,35.24523432,2587.2,2587.1,0.0716428]
[1751983598036,35.24518464,2587.2,2587.1,0.0716428]
[1751983599130,43.13518464,2587.2,2587.1,0.0716428]
[1751983599572,43.13518464,2587.2,2586.9,0.001]
[1751983599573,5.28088125,2587.0,2586.9,1e-08]
[1751983599770,29.33561639,2587.0,2586.9,1e-08]
[1751983600565,37.22561639,2587.0,2586.9,1e-08]
[1751983600740,14.74917797,2586.4,2586.3,0.0716428]
[1751983600943,28.55103423,2586.4,2586.3,0.0716428]
[1751983601150,29.10080054,2586.4,2586.3,0.0716428]
[1751983601639,29.44573002,2586.4,2586.3,0.0716428]
[1751983601865,29.74247077,2586.4,2586.3,0.0716428]
[1751983602771,33.74247077,2586.4,2586.3,0.0716428]
[1751983603445,35.24447077,2586.4,2586.3,0.0716428]
[1751983605369,33.74247077,2586.4,2586.3,0.0716428]
[1751983605547,29.3260928,2586.4,2586.3,0.0716428]
[1751983605750,4.27470477,2586.4,2586.3,0.0716428]
[1751983606061,4.0,2586.4,2586.3,0.0716428]
[1751983606470,19.91937797,2586.4,2586.3,0.0716428]
[1751983606667,21.11906668,2586.4,2586.3,0.0716428]
[1751983606967,31.66906668,2586.4,2586.3,0.0716428]
[1751983607857,32.02080016,2586.4,2586.3,0.0716428]
[1751983608062,33.4083763,2586.4,2586.3,0.0716428]
[1751983608241,33.05664282,2586.4,2586.3,0.0716428]
[1751983608849,33.40829915,2586.4,2586.3,0.0716428]
[1751983609068,33.40829915,2586.4,2586.1,0.001]
[1751983609069,5.29297697,2586.2,2586.1,0.001]
[1751983609379,29.36019815,2586.2,2586.1,0.001]
[1751983609886,33.36019815,2586.2,2586.1,0.001]
[1751983610253,33.00854182,2586.2,2586.1,0.001]
[1751983610472,27.75428871,2586.2,2586.1,0.001]
[1751983610647,33.00696638,2586.2,2586.1,0.001]
[1751983611062,31.62096568,2586.2,2586.1,0.001]
[1751983612077,33.00656265,2586.2,2586.1,0.001]
[1751983612746,31.62096568,2586.2,2586.1,0.001]
[1751983613146,40.89597064,2586.2,2586.1,0.001]
[1751983615456,40.34597064,2586.2,2586.1,0.001]
[1751983615660,38.96054793,2586.2,2586.1,0.001]
[1751983616164,38.960548,2586.2,2586.1,0.001]
[1751983616369,26.906548,2586.2,2586.1,0.001]
[1751983616562,32.250048,2586.2,2586.1,0.001]
[1751983617176,12.16357103,2586.2,2586.1,0.001]
[1751983617387,7.89,2586.2,2586.1,4.44741675]
[1751983617582,4.77898578,2586.8,2586.3,3.86639715]
[1751983617768,0.2736258,2586.7,2586.3,3.86639715]
[1751983617967,10.08568578,2586.8,2586.3,4.05924849]
[1751983618177,0.27362759,2586.7,2586.3,4.98524663]
[1751983618356,3.86631171,2586.5,2586.1,1.29539026]
[1751983618562,3.86663186,2586.3,2586.1,0.1938]
[1751983618865,25.92067697,2586.2,2586.1,0.001]
[1751983619763,26.19448905,2586.2,2586.1,0.001]
[1751983619966,27.10758905,2586.2,2586.1,0.001]
[1751983620166,28.49303033,2586.2,2586.1,0.001]
[1751983620988,29.04303033,2586.2,2586.1,0.001]
[1751983621187,29.39677767,2586.2,2586.1,0.001]
[1751983621389,33.39677767,2586.2,2586.1,0.001]
[1751983621695,53.46569639,2586.2,2586.1,1e-08]
[1751983621998,53.46569639,2586.2,2585.4,0.0706428]
[1751983621999,4.78422384,2585.5,2585.4,0.0706428]
[1751983622193,27.11116305,2585.5,2585.4,0.0706428]
[1751983622360,27.66116305,2585.5,2585.4,0.0706428]
[1751983622563,29.04681906,2585.5,2585.4,0.0706428]
[1751983623398,29.68807293,2585.5,2585.4,0.0706428]
[1751983623764,33.68807293,2585.5,2585.4,0.0706428]
[1751983623963,35.18907293,2585.5,2585.4,0.0706428]
[1751983624181,35.18911174,2585.5,2585.4,0.0706428]
[1751983625302,35.18911174,2585.5,2585.2,0.001]
[1751983625303,4.41802305,2585.3,2585.2,1e-08]
[1751983625499,30.90393659,2585.3,2585.2,1e-08]
[1751983625878,40.19693659,2585.3,2585.2,1e-08]
[1751983626079,49.13777652,2585.3,2585.2,1e-08]
[1751983626513,56.37141708,2585.3,2585.2,1e-08]
[1751983626920,15.33992095,2584.7,2584.6,0.0706428]
[1751983627068,31.50973761,2584.7,2584.6,0.0706428]
[1751983627460,3.87026859,2583.8,2583.7,0.0706428]
[1751983627700,15.99126859,2583.8,2583.7,0.0706428]
[1751983627908,26.26489935,2583.8,2583.7,0.0706428]
[1751983628202,26.81489935,2583.8,2583.7,0.0706428]
[1751983629290,31.44186873,2583.8,2583.7,0.0706428]
[1751983629500,30.81489935,2583.8,2583.7,0.0706428]
[1751983629810,30.81489935,2583.8,2582.9,0.0706428]
[1751983629811,3.87141812,2583.1,2582.9,0.0706428]
[1751983629977,10.0,2583.0,2582.9,0.0706428]
[1751983630193,13.87146728,2583.0,2582.9,0.0706428]
[1751983630667,10.0,2583.0,2582.9,0.0706428]
[1751983630869,13.87146728,2583.0,2582.9,0.0706428]
[1751983631102,14.14441717,2583.0,2582.9,0.0706428]
[1751983631414,15.63341717,2583.0,2582.9,0.0706428]
[1751983631570,21.13441717,2583.0,2582.9,0.0706428]
[1751983631769,18.14441717,2583.0,2582.9,0.0706428]
[1751983631993,14.63239665,2583.0,2582.9,0.0706428]
[1751983632176,18.50386393,2583.0,2582.9,0.0706428]
[1751983632479,14.27294989,2583.0,2582.9,0.0706428]
[1751983632683,4.27294989,2583.0,2582.9,0.46488296]
[1751983632981,4.27294989,2583.0,2582.9,0.0706428]
[1751983633797,0.27294989,2583.0,2582.9,0.0706428]
[1751983634216,6.071,2583.1,2582.9,0.0706428]
[1751983634367,6.071,2583.2,2582.9,0.0706428]
[1751983634570,4.06389947,2583.3,2582.9,0.0706428]
[1751983634812,4.14293976,2583.2,2582.9,0.0706428]
[1751983635008,0.27175439,2583.1,2582.9,0.0706428]
[1751983635209,3.87118537,2583.2,2582.9,0.0706428]
[1751983635824,0.27161716,2583.1,2582.9,0.0706428]
[1751983636114,3.87123437,2583.2,2582.9,0.0706428]
[1751983636269,0.27156246,2583.1,2582.9,0.0706428]
[1751983636466,3.87123437,2583.2,2582.9,0.0706428]
[1751983637104,6.2638,2583.3,2582.9,0.0706428]
[1751983637305,0.27155837,2583.2,2582.9,3.94217336]
[1751983637510,13.87094881,2583.4,2583.1,0.1928]
[1751983637713,0.27151197,2583.3,2583.1,0.1928]
[1751983637871,3.87078837,2583.5,2583.1,0.1928]
[1751983637872,10.0,2583.4,2583.1,0.1928]
[1751983638272,10.0,2583.4,2583.2,0.8631]
[1751983638675,0.1928,2583.6,2583.2,0.8631]
[1751983638871,0.2715081,2583.5,2583.3,3.87101769]
[1751983639083,0.1928,2584.1,2583.5,0.8939]
[1751983639372,0.27149641,2584.0,2583.8,4.06304723]
[1751983639577,1.56805026,2584.2,2583.8,4.06304723]
[1751983639805,0.27154544,2584.1,2583.8,0.1928]
[1751983639982,0.27154544,2584.0,2583.8,0.1928]
[1751983640184,4.0624882,2584.2,2583.8,0.1928]
[1751983640386,5.51688489,2584.1,2583.8,0.1928]
[1751983640593,0.27159547,2584.0,2583.8,0.1928]
[1751983640806,0.27159547,2583.9,2583.8,0.1928]
[1751983640977,3.87036315,2583.8,2583.5,0.1928]
[1751983641586,0.1928,2583.9,2583.6,3.87056588]
[1751983641793,0.27166573,2583.8,2583.6,3.87056588]
[1751983641995,0.27166573,2583.8,2583.7,3.87041839]
[1751983642194,0.1928,2584.2,2583.8,0.8798]
[1751983642505,0.27174258,2584.1,2583.8,4.74996533]
[1751983642812,0.27174258,2584.0,2583.8,4.74996533]
[1751983642979,10.1928,2584.2,2583.9,3.87011184]
[1751983643177,0.27174408,2584.1,2583.8,4.75006403]
[1751983643389,10.0,2584.4,2583.9,3.87011881]
[1751983643686,0.27183812,2584.3,2584.1,3.86968415]
[1751983643882,3.86914815,2584.6,2584.1,3.86968415]
[1751983643883,0.27183812,2584.2,2584.1,4.06248415]
[1751983644080,3.86898858,2584.7,2584.4,0.9538]
[1751983644313,4.0,2584.5,2584.1,0.1928]
[1751983644511,7.8692932,2584.5,2584.2,0.1928]
[1751983644823,0.27194581,2584.4,2584.2,0.1928]
[1751983645028,0.27194501,2584.3,2584.0,0.9538]
[1751983645180,0.27194501,2584.2,2584.0,1.1466]
[1751983645380,10.1928,2584.5,2584.1,3.86973152]
[1751983645610,1.64940896,2584.4,2584.1,3.86973152]
[1751983645812,0.27205943,2584.3,2584.0,5.0165008]
[1751983646017,1.37728853,2584.4,2584.0,1.1466]
[1751983646261,0.27206,2584.3,2584.2,3.86966953]
[1751983646531,13.86883188,2584.8,2584.5,3.86918853]
[1751983646532,10.0,2584.8,2584.5,3.86918853]
[1751983646725,0.27219681,2584.7,2584.6,0.8823]
[1751983647031,0.27219681,2584.7,2584.6,1.0751]
[1751983647320,4.14111776,2584.7,2584.6,1.0751]
[1751983647548,5.51895221,2584.7,2584.2,0.9193]
[1751983647699,5.51895221,2584.7,2584.2,1.1121]
[1751983647700,3.86948259,2584.4,2584.2,1.1121]
[1751983647881,3.86951979,2584.3,2584.2,0.1928]
[1751983648082,3.86986646,2584.1,2583.9,0.9193]
[1751983648410,3.86996904,2584.0,2583.9,0.1928]
[1751983648590,3.87026859,2583.8,2583.4,2.4764]
[1751983648924,3.87029157,2583.8,2583.5,0.1928]
[1751983649515,0.27297464,2583.7,2583.5,0.1928]
[1751983649683,0.1928,2584.0,2583.5,0.1928]
[1751983649881,0.27297506,2583.9,2583.5,0.1928]
[1751983650208,0.27297506,2583.8,2583.5,4.06349186]
[1751983650396,0.27297506,2583.7,2583.5,0.1928]
[1751983650597,6.066,2584.2,2583.5,3.87068765]
[1751983650598,3.869852,2584.1,2583.5,3.87068765]
[1751983650911,3.87028399,2583.8,2583.6,0.1928]
[1751983651109,4.14343925,2583.7,2583.6,0.1928]
[1751983651291,3.87056869,2583.6,2583.5,0.1928]
[1751983651491,4.14358955,2583.6,2583.5,0.1928]
[1751983652318,0.27302086,2583.6,2583.5,0.1928]
[1751983653839,3.87049375,2583.7,2583.5,0.1928]
[1751983654005,0.27351268,2583.6,2583.5,0.1928]
[1751983654212,0.27351268,2583.6,2583.5,4.06351801]
[1751983654433,0.27351268,2583.6,2583.5,4.56938068]
[1751983654638,0.27351268,2583.6,2583.5,0.69866267]
[1751983654957,0.27351268,2583.6,2583.5,0.1928]
[1751983655639,4.14408087,2583.6,2583.5,0.1928]
[1751983656147,3.87114861,2583.3,2583.2,0.1928]
[1751983656317,4.14466129,2583.3,2583.2,0.1928]
[1751983657327,0.27351268,2583.3,2582.9,0.0706428]
[1751983657547,3.87146728,2583.0,2582.9,0.0706428]
[1751983657723,4.14497996,2583.0,2582.9,0.0706428]
[1751983658149,14.14497996,2583.0,2582.9,0.0706428]
[1751983658451,14.50097146,2583.0,2582.9,0.0706428]
[1751983658744,15.88924029,2583.0,2582.9,0.0706428]
[1751983659548,18.57264286,2583.0,2582.9,0.0706428]
[1751983659734,22.57264286,2583.0,2582.9,0.0706428]
[1751983659939,25.17808342,2583.0,2582.9,0.0706428]
[1751983660449,25.17808342,2583.0,2581.9,0.9387]
[1751983660450,3.87251674,2582.3,2581.9,0.9387]
[1751983660650,3.87281669,2582.1,2581.8,0.1936]
[1751983660813,4.14632937,2582.1,2581.8,0.1936]
[1751983661550,0.27351268,2582.1,2582.0,0.0442276]
[1751983661754,0.27351268,2582.1,2582.0,3.91719429]
[1751983661944,0.27351268,2582.1,2582.0,5.44508684]
[1751983662520,10.0,2582.6,2582.0,5.44508684]
[1751983662718,4.14352504,2582.5,2582.2,0.1936]
[1751983662922,4.14367028,2582.4,2582.2,0.1936]
[1751983663155,0.27127605,2582.3,2582.2,0.1936]
[1751983663331,0.27127605,2582.3,2582.0,0.9829276]
[1751983663516,4.06588384,2582.5,2582.0,5.04946493]
[1751983663851,0.27124659,2582.4,2582.0,1.1765276]
[1751983664026,0.27124659,2582.3,2582.0,5.04941646]
[1751983664216,0.27124659,2582.2,2582.0,5.04941646]
[1751983664454,0.1936,2582.5,2582.1,3.87278762]
[1751983664625,0.27117997,2582.4,2582.3,3.87251674]
[1751983665066,0.27117997,2582.4,2582.3,4.06611674]
[1751983665440,0.27117997,2582.4,2582.3,5.0260419]
[1751983665763,1.38510741,2582.9,2582.8,3.87176707]
[1751983665943,0.27115668,2582.9,2582.7,3.87185386]
[1751983666256,0.27115668,2582.8,2582.6,3.872009]
[1751983666441,0.27115668,2582.7,2582.5,0.03872216]
[1751983666642,0.27115668,2582.6,2582.3,6.9782]
[1751983666832,3.87174219,2582.9,2582.5,0.1936]
[1751983666833,3.87179298,2582.8,2582.5,0.1936]
[1751983667031,4.14309293,2582.7,2582.5,0.1936]
[1751983667239,4.14322797,2582.6,2582.3,0.1936]
[1751983667445,4.14337041,2582.5,2582.3,0.1936]
[1751983667637,0.27114359,2582.4,2582.3,0.1936]
[1751983668453,0.27114359,2582.4,2582.1,3.91702425]
[1751983668723,3.87223401,2582.5,2582.2,0.1936]
[1751983669029,4.1434923,2582.4,2582.2,0.1936]
[1751983669336,0.27105025,2582.3,2582.2,0.1936]
[1751983670455,3.87225099,2582.5,2582.2,0.1936]
[1751983670635,0.27091914,2582.4,2582.2,0.1936]
[1751983670831,3.8723751,2582.4,2582.2,0.1936]
[1751983671151,3.87251674,2582.3,2582.2,0.1936]
[1751983671455,3.87266671,2582.2,2582.1,0.0442276]
[1751983672224,14.80756671,2582.2,2582.1,0.0442276]
[1751983673041,13.87266671,2582.2,2582.1,0.0442276]
[1751983673247,14.82296671,2582.2,2582.1,0.0442276]
[1751983673564,15.78336887,2582.2,2582.1,0.0442276]
[1751983674060,19.78336887,2582.2,2582.1,0.0442276]
[1751983674748,20.62236614,2582.2,2582.1,0.0442276]
[1751983675570,14.9503,2582.2,2582.1,0.0442276]
[1751983675870,14.1936,2582.2,2582.1,0.0442276]
[1751983676235,10.1936,2582.2,2582.1,0.0442276]
[1751983677052,0.1936,2582.4,2582.1,3.91692675]
[1751983677255,0.9218,2582.7,2582.2,3.87254703]
[1751983677431,6.071,2582.5,2582.1,0.2378276]
[1751983677630,10.0,2582.4,2582.1,4.11060239]
[1751983678063,10.0,2582.4,2582.1,0.2378276]
[1751983678265,10.0,2582.4,2582.1,4.11063452]
[1751983678875,10.0,2582.5,2582.1,4.11063452]
[1751983679075,3.8724049,2582.4,2582.1,0.2378276]
[1751983679285,19.94329046,2582.5,2582.1,0.2378276]
[1751983679681,13.87229046,2582.5,2582.1,0.2378276]
[1751983679884,10.0,2582.5,2582.1,4.11063026]
[1751983680177,6.2636,2582.6,2582.3,0.9264]
[1751983680396,20.13567696,2582.6,2582.3,0.9264]
[1751983680946,3.87238866,2582.4,2582.1,1.1228276]
[1751983681185,3.87266671,2582.2,2582.1,0.0442276]
[1751983681753,4.06619141,2582.3,2582.1,0.0442276]
[1751983682266,0.1936,2582.3,2582.1,0.0442276]
[1751983682658,4.0661368,2582.3,2582.1,0.0442276]
[1751983682993,13.87266671,2582.2,2582.1,0.0442276]
[1751983683153,26.55966671,2582.2,2582.1,0.0442276]
[1751983683569,27.94670832,2582.2,2582.1,0.0442276]
[1751983683981,27.94677471,2582.2,2582.1,0.0442276]
[1751983684184,28.29024775,2582.2,2582.1,0.0442276]
[1751983684483,29.12867481,2582.2,2582.1,0.0442276]
[1751983685263,33.12867481,2582.2,2582.1,0.0442276]
[1751983685481,33.12912854,2582.2,2582.1,0.0442276]
[1751983686061,16.56946183,2582.2,2582.1,0.0442276]
[1751983686261,14.0,2582.2,2582.1,0.0442276]
[1751983686463,4.0,2582.2,2582.1,0.9094276]
[1751983686752,4.0,2582.2,2582.1,4.97584429]
[1751983687305,1.73442976,2582.8,2582.5,0.8674]
[1751983687514,9.403,2583.4,2582.5,0.8674]
[1751983687515,4.0,2582.6,2582.5,0.8674]
[1751983687784,4.0,2582.6,2582.5,4.93310713]
[1751983687996,4.0,2582.6,2582.5,5.81365225]
[1751983688288,6.073,2583.5,2582.7,0.9179]
[1751983688597,6.073,2583.5,2583.1,3.87121614]
[1751983688598,10.0,2583.4,2583.1,3.87121614]
[1751983688766,10.0,2583.5,2583.3,0.1928]
[1751983688969,14.0,2583.4,2583.3,0.1928]
[1751983689273,19.65795007,2583.4,2582.9,3.8715403]
[1751983689472,14.0,2583.4,2583.1,0.1928]
[1751983689688,17.8708963,2583.4,2583.1,0.1928]
[1751983689885,13.8708963,2583.4,2583.1,0.1928]
[1751983690392,1.136,2583.3,2582.9,0.1928]
[1751983690591,0.1928,2583.3,2582.9,0.1928]
[1751983690777,4.06385615,2583.3,2582.9,0.1928]
[1751983691095,3.87117861,2583.2,2582.9,0.1928]
[1751983691258,4.06385091,2583.3,2582.9,0.1928]
[1751983691597,0.1928,2583.3,2582.9,4.06433971]
[1751983691770,13.87088203,2583.4,2582.9,3.87153971]
[1751983691958,13.87088203,2583.4,2583.0,0.1928]
[1751983692158,3.8710373,2583.3,2583.0,0.1928]
[1751983692492,3.87121332,2583.2,2583.0,0.1928]
[1751983692658,3.87109273,2583.3,2583.0,0.1928]
[1751983693219,13.87094017,2583.4,2583.0,0.1928]
[1751983694001,10.0,2583.4,2583.1,3.87130973]
[1751983694301,13.87086868,2583.4,2583.0,0.1928]
[1751983694500,10.0,2583.4,2583.0,4.0642353]
[1751983694701,15.37157339,2583.4,2583.0,0.1928]
[1751983694995,11.50067608,2583.4,2583.0,0.1928]
[1751983695160,11.50067608,2583.4,2583.0,4.06425434]
[1751983695570,15.37156128,2583.4,2583.0,0.1928]
[1751983695776,3.87104794,2583.3,2583.0,0.1928]
[1751983696075,1.04716466,2583.3,2583.0,0.1928]
[1751983696309,10.0,2583.4,2583.0,4.06426187]
[1751983696599,13.87088324,2583.4,2583.0,4.06425009]
[1751983696789,13.87088324,2583.4,2583.0,0.1928]
[1751983696790,10.0,2583.4,2583.0,0.1928]
[1751983696990,3.87112755,2583.3,2583.0,0.1928]
[1751983698104,13.87089613,2583.4,2583.0,0.1928]
[1751983698312,10.0,2583.4,2583.1,3.87130713]
[1751983698469,0.1928,2583.5,2583.1,4.77313346]
[1751983698670,3.87237154,2583.8,2583.4,0.1928]
[1751983698870,3.87237154,2583.8,2583.4,4.06360476]
[1751983698871,4.0,2583.5,2583.4,4.06360476]
[1751983699098,0.002,2583.8,2583.7,3.87041839]
[1751983699327,0.002,2583.8,2583.7,4.85658489]
[1751983699473,0.002,2583.8,2583.7,5.73238489]
[1751983700198,0.002,2583.8,2583.7,1.0686]
[1751983700514,0.002,2583.8,2583.4,0.9242]
[1751983700686,0.002,2583.8,2583.7,4.06321839]
[1751983701077,0.002,2583.8,2583.7,4.93071839]
[1751983702211,0.002,2583.8,2583.7,4.96942257]
[1751983702381,0.002,2583.8,2583.7,6.4599212]
[1751983702770,1e-08,2583.8,2583.7,6.4599212]
[1751983702980,1e-08,2583.8,2583.7,16.4599212]
[1751983703315,0.002,2584.8,2584.7,4.78572095]
[1751983703478,0.002,2584.8,2584.7,4.97852095]
[1751983703802,0.002,2584.8,2584.7,6.47027812]
[1751983704107,0.002,2584.8,2584.7,6.50896732]
[1751983704513,0.002,2584.8,2584.7,6.47027812]
[1751983704809,0.002,2584.8,2584.7,14.05827812]
[1751983706889,0.002,2584.8,2584.7,6.47027812]
[1751983707213,0.002,2584.8,2584.7,7.1786]
[1751983707379,0.002,2584.8,2584.7,1.1096]
[1751983707579,0.002,2584.8,2584.7,7.1786]
[1751983707777,0.002,2584.8,2584.7,0.1928]
[1751983708373,3.87077127,2584.8,2584.3,4.7632913]
[1751983708578,3.87077127,2584.8,2584.5,0.1928]
[1751983708814,3.86893111,2584.7,2584.5,6.2628]
[1751983709014,3.86907064,2584.6,2584.5,0.1928]
[1751983710279,0.002,2584.8,2584.5,0.1928]
[1751983710684,0.002,2584.8,2584.6,6.068]
[1751983711106,0.002,2584.8,2584.7,4.06172095]
[1751983711433,0.002,2584.8,2584.7,0.1928]
[1751983712533,0.002,2584.8,2584.7,5.20299669]
[1751983712814,0.002,2584.8,2584.7,11.26899669]
[1751983713111,0.002,2584.8,2584.7,11.23030749]
[1751983713708,0.002,2584.8,2584.7,11.22930749]
[1751983714280,0.002,2584.8,2584.7,10.12672095]
[1751983714481,0.002,2584.8,2584.7,6.2568]
[1751983714677,4.74947127,2584.8,2584.7,0.1928]
[1751983714916,3.86927233,2584.5,2583.9,4.82490524]
[1751983715124,3.86944984,2584.4,2583.9,2.4698]
[1751983715325,10.8807,2584.8,2583.9,1.515]
[1751983715326,10.0,2584.6,2583.9,1.515]
[1751983715484,1.08807,2584.6,2584.0,6.067]
[1751983715817,3.86931774,2584.5,2584.0,9.93690274]
[1751983716112,3.86937563,2584.4,2584.0,6.067]
[1751983716409,3.86953066,2584.3,2584.0,6.067]
[1751983716618,0.55,2584.7,2583.8,4.82500968]
[1751983716619,0.55,2584.7,2583.8,0.9548]
[1751983716779,3.8701948,2583.9,2583.6,1.515]
[1751983716984,3.86998977,2584.0,2583.6,7.581]
[1751983717517,3.87038607,2583.8,2583.3,0.942]
[1751983717707,3.870537,2583.7,2583.4,6.065]
[1751983717891,0.9349,2584.1,2583.4,6.065]
[1751983718220,13.87014404,2583.9,2583.4,9.9357682]
[1751983718378,3.87015371,2583.9,2583.4,6.065]
[1751983718582,3.87015371,2583.9,2583.2,5.38614194]
[1751983718583,3.87015371,2583.9,2583.5,6.064]
[1751983719114,13.87020346,2583.9,2583.5,6.064]
[1751983719613,0.9349,2584.1,2583.7,3.87034154]
[1751983719816,10.0,2584.2,2583.7,3.87034154]
[1751983720016,10.0,2584.1,2583.7,3.87034154]
[1751983720315,0.55,2584.3,2583.8,3.87026257]
[1751983720316,13.86958952,2584.3,2583.8,3.87026257]
[1751983720515,10.0,2584.3,2583.6,0.9596]
[1751983720714,3.87005377,2584.0,2583.7,6.064]
[1751983720902,3.86981927,2584.1,2583.5,6.064]
[1751983721306,3.87014677,2583.9,2583.5,6.064]
[1751983721814,10.0,2584.1,2583.6,3.87056819]
[1751983722015,10.0,2584.1,2583.7,3.87041585]
[1751983722183,10.0,2584.2,2583.7,3.87041585]
[1751983722585,10.0,2584.2,2583.7,1.41920208]
[1751983722800,10.0,2584.2,2583.8,3.87026859]
[1751983722998,7.89,2584.3,2583.9,0.95240118]
[1751983723315,3.8697576,2584.2,2583.6,0.9071]
[1751983723482,3.8697576,2584.2,2583.9,6.064]
[1751983723883,3.8698321,2584.1,2583.6,4.77759713]
[1751983724120,3.86971184,2584.2,2583.7,9.93537944]
[1751983724615,3.86982641,2584.1,2583.7,6.065]
[1751983724815,3.87000958,2584.0,2583.8,0.1928]
[1751983725117,3.87011881,2583.9,2583.4,4.8010651]
[1751983725317,3.87011881,2583.9,2583.6,0.1928]
[1751983725531,4.92926546,2584.1,2583.6,0.1928]
[1751983725713,3.87018588,2583.9,2583.6,0.1928]
[1751983725918,3.87031222,2583.8,2583.4,6.064]
[1751983726090,0.8666,2584.1,2583.4,6.2558]
[1751983726091,0.1928,2583.9,2583.4,6.2558]
[1751983726289,4.06294095,2583.9,2583.4,10.12655253]
[1751983726485,3.87028314,2583.8,2583.4,10.12655253]
[1751983726732,0.1928,2583.9,2583.4,6.2558]
[1751983727229,3.87033493,2583.8,2583.4,6.2558]
[1751983727434,4.06302448,2583.9,2583.4,10.12658245]
[1751983727605,3.87030633,2583.8,2583.4,6.2558]
[1751983728005,3.8704552,2583.7,2583.4,0.1928]
[1751983728212,3.87071801,2583.5,2583.4,0.1928]
[1751983728396,3.87073264,2583.5,2583.3,0.1928]
[1751983728729,4.06332563,2583.7,2583.3,0.1928]
[1751983729027,14.06328589,2583.7,2583.3,0.1928]
[1751983729638,4.06329684,2583.7,2583.3,0.1928]
[1751983730538,0.1928,2583.7,2583.3,0.1928]
[1751983730747,4.06331539,2583.7,2583.3,0.1928]
[1751983731038,0.1928,2583.7,2583.3,4.06381041]
[1751983731208,4.06322651,2583.7,2583.3,4.06381041]
[1751983731411,4.06322651,2583.7,2583.3,0.1928]
[1751983732111,3.87086784,2583.4,2583.3,0.1928]
[1751983732317,3.87086784,2583.4,2583.0,6.054]
[1751983732497,4.06359736,2583.5,2583.0,10.11825829]
[1751983732697,0.1928,2583.5,2583.0,6.2468]
[1751983733028,10.0,2583.7,2583.3,1.0847]
[1751983733197,10.0,2583.7,2583.3,4.95564749]
[1751983733598,10.0,2583.7,2583.4,3.87082959]
[1751983733823,10.0,2583.7,2583.3,1.0847]
[1751983734029,10.0,2583.7,2583.4,3.87086259]
[1751983734235,10.0,2583.7,2583.3,1.0847]
[1751983734413,10.0,2583.7,2583.3,4.95564138]
[1751983734605,10.0,2583.7,2583.4,3.87084805]
[1751983734929,10.0,2583.7,2583.3,4.95566841]
[1751983735136,10.0,2583.7,2583.3,0.1928]
[1751983735336,0.9557,2583.4,2582.9,1.516]
[1751983735634,11.1485,2583.4,2583.0,4.06419128]
[1751983735840,10.1928,2583.4,2583.0,4.06418837]
[1751983736023,4.06368349,2583.4,2583.0,0.1928]
[1751983736200,3.87109738,2583.3,2583.0,0.1928]
[1751983736397,14.06374346,2583.4,2583.0,0.1928]
[1751983736623,10.1928,2583.4,2583.0,4.06423235]
[1751983736821,0.9557,2583.6,2583.2,3.87111692]
[1751983737021,14.82627508,2583.6,2583.3,0.1928]
[1751983737229,10.9557,2583.6,2583.3,0.1928]
[1751983737411,0.9557,2583.6,2583.3,4.06381219]
[1751983737732,10.1928,2583.7,2583.3,4.06375026]
[1751983737912,10.1928,2583.7,2583.3,0.1928]
[1751983738324,14.06330842,2583.7,2583.3,0.1928]
[1751983738640,10.1928,2583.7,2583.3,0.1928]
[1751983739219,3.87059038,2583.6,2583.3,0.1928]
[1751983739413,14.0632738,2583.7,2583.3,0.1928]
[1751983739614,10.1928,2583.7,2583.3,0.1928]
[1751983740323,10.1928,2583.7,2583.3,4.94723733]
[1751983740636,14.06336057,2583.7,2583.3,0.1928]
[1751983741138,14.06330586,2583.7,2583.3,0.1928]
[1751983741334,3.87071277,2583.6,2583.3,0.1928]
[1751983741512,10.1928,2583.7,2583.3,0.1928]
[1751983741715,10.1928,2583.7,2583.4,3.87073639]
[1751983741914,10.1928,2583.7,2583.4,3.87074529]
[1751983742257,3.86991085,2584.1,2583.4,3.87074529]
[1751983742258,0.9589,2584.2,2583.7,3.87040365]
[1751983742418,7.89,2584.4,2584.0,3.86989845]
[1751983742752,0.1928,2584.4,2584.0,0.1928]
[1751983742939,0.1928,2584.4,2584.1,3.86970509]